Cogmind - Beta 13 @@@ ROGUE MODE // 2024.04.16 @ 01:32:14 Player: octapi Result: Destroyed by S-43 Plague with Heavy Machine Gun Performance ------------- Evolutions (9) 4500 Regions Visited (17) 3400 Robots Destroyed (188) 940 Value Destroyed (10314) 10314 Prototype IDs (22) 440 Alien Tech Used (0) 0 Bonus (5436) 5436 TOTAL SCORE: 25030 Bonus ------- High Alert Combat Kills 1063 Follower Combat Kills 632 Entered DSFs 500 Aligned with FarCom 300 Met Warlord at Base 500 MAIN.C Attacked Warlord 500 Met Warlord at Research 2000 Friendly Fire -59 Cogmind --------- Core Integrity 0/1600 Matter 260/300 Energy 81/100 System Corruption 18% Temperature Cool (0) Movement Core (50) Location -1/Access Parts ------- > --- POWER (2) -------- (None) > --- PROPULSION (6) --- Centrium Leg (fused) > --- UTILITY (12) ----- Advanced Target Analyzer > --- WEAPON (5) ------- (None) > --- INVENTORY (5) ---- Quantum Capacitor Advanced Variable Charge Gun Peak State ------------ > --- POWER ------------ Quantum Reactor Quantum Reactor > --- PROPULSION ------- Heavy Treads Heavy Treads Improved Heavy Siege Treads > --- UTILITY ---------- Advanced Power Amplifier Advanced Cryofiber Web Experimental Heat Sink Improved Cooling System Improved Coolant Injector High-capacity Storage Unit Experimental Energy Well Quantum Capacitor Improved Medium Armor Plating Layered Medium Armor Plating Centrium Light Armor Plating > --- WEAPON ----------- Plasma Storm > --- INVENTORY -------- F-cell Engine Micro Fission Core Light Particle Reactor Quantum Reactor Light Quantum Reactor Advanced Medium Treads Experimental Cooling System Improved Weapon Cycler Heavy Armor Plating Improved Thermal Defense Suite Force Rifle Phase Gun Phase Gun Advanced Variable Charge Gun Compact HERF Cannon Matter Neutralizer Thermoblaster [Rating: 183] Favorites ----------- Power F-cell Engine Engine F-cell Engine Power Core Light Nuclear Core Reactor Particle Reactor Propulsion Heavy Treads Treads Heavy Treads Leg Aluminum Leg Wheel Armored Huge Wheel Utility High-capacity Storage Unit Device Experimental Cooling System Storage High-capacity Storage Unit Processor Improved Target Analyzer Protection Hardened Medium Armor Plating Weapon Force Rifle Energy Gun Force Rifle Energy Cannon Cooled Phase Cannon Ballistic Gun Light Assault Rifle Ballistic Cannon Advanced Assault Cannon Launcher Thermoblaster Special Weapon Field Lobotomy Kit Slashing Weapon Longsword +1 Build | -11 -10 -10 -10 -9 -8 -7 -6 -6 -5 -4 -4 -4 -4 -3 -3 -2 -1 ------- Run | Yrd Mat Min Exi Min Mat Fac Fac DSF Fac Fac Upp Upp War Pro Res Res Acc Slots Evolved 18 | . . . . . 4 2 2 . 2 2 . . . . 2 2 2 Power 1 | . . . . . . . . . 1 . . . . . . . . Propulsion 4 | . . . . . 2 . . . . . . . . . . 1 1 Utility 10 | . . . . . 2 1 2 . 1 2 . . . . . 1 1 Weapon 3 | . . . . . . 1 . . . . . . . . 2 . . Parts Attached 175 | . 2 1 13 . 11 27 . 7 2 17 3 5 5 3 12 16 51 Power 25 | . 1 . . . 1 4 . . 1 . 1 1 . . 3 5 8 Engine 6 | . 1 . . . . 2 . . 1 . . . . . . 1 1 Core 4 | . . . . . 1 2 . . . . . . . . 1 . . Reactor 15 | . . . . . . . . . . . 1 1 . . 2 4 7 Propulsion 31 | . . . 7 . 4 2 . 1 . 3 . . 1 . 2 1 10 Treads 12 | . . . 3 . 1 . . . . 2 . . 1 . 2 1 2 Leg 5 | . . . . . . . . . . . . . . . . . 5 Wheel 14 | . . . 4 . 3 2 . 1 . 1 . . . . . . 3 Hover . | . . . . . . . . . . . . . . . . . . Flight . | . . . . . . . . . . . . . . . . . . Utility 66 | . 1 . 1 . 4 10 . 6 1 7 1 3 1 1 6 10 14 Device 35 | . 1 . . . 1 4 . 3 1 3 . 2 1 1 5 5 8 Storage 5 | . . . 1 . . 1 . . . . . . . . . 2 1 Processor 10 | . . . . . 1 1 . 1 . 3 . . . . . 1 3 Hackware . | . . . . . . . . . . . . . . . . . . Protection 16 | . . . . . 2 4 . 2 . 1 1 1 . . 1 2 2 Artifact . | . . . . . . . . . . . . . . . . . . Weapon 53 | . . 1 5 . 2 11 . . . 7 1 1 3 2 1 . 19 Energy Gun 31 | . . 1 1 . 2 4 . . . 5 . 1 3 1 1 . 12 Energy Cannon 11 | . . . 1 . . 2 . . . . 1 . . 1 . . 6 Ballistic Gun 1 | . . . 1 . . . . . . . . . . . . . . Ballistic Cannon 3 | . . . . . . 3 . . . . . . . . . . . Launcher 1 | . . . . . . . . . . . . . . . . . 1 Special Weapon 5 | . . . 1 . . 2 . . . 2 . . . . . . . Impact Weapon . | . . . . . . . . . . . . . . . . . . Slashing Weapon 1 | . . . 1 . . . . . . . . . . . . . . Piercing Weapon . | . . . . . . . . . . . . . . . . . . Special Melee Weapon . | . . . . . . . . . . . . . . . . . . Unidentified Prototypes 21 | . . . 3 . 1 8 . . . 2 . . 1 . 1 5 . Parts Lost 75 | . . 1 . . . 8 . . . 3 1 2 . 2 7 4 47 Power 16 | . . . . . . 3 . . . . 1 . . . 3 1 8 Propulsion 12 | . . . . . . 1 . . . . . . . . 1 . 10 Utility 29 | . . . . . . 2 . . . 2 . 1 . 1 3 3 17 Weapon 18 | . . 1 . . . 2 . . . 1 . 1 . 1 . . 12 Highest Loss Streak 26 | . . 1 . . . 6 . . . 1 1 2 . 2 3 2 26 To Critical Strikes 3 | . . . . . . 1 . . . . . . . . . . 2 Average Slot Usage (%) 79 | . 93 100 98 100 78 82 73 84 82 83 84 83 88 88 63 67 75 Engine 3 | . 14 14 14 14 1 2 6 6 11 10 8 3 . . . . . Reactor 4 | . . . . . . . . . . . 1 6 10 10 8 7 7 Treads 7 | . . . 7 14 5 . . . . 7 10 10 10 10 9 13 9 Leg 1 | . 28 28 13 . . . . . . . . . . . . . 1 Wheel 3 | . . . 7 14 17 14 13 13 11 2 . . . . . . 1 Device 22 | . 7 14 14 14 14 9 13 20 23 25 26 28 31 31 23 27 24 Storage 6 | . 14 14 14 14 9 7 6 6 5 5 5 5 5 5 4 5 5 Processor 5 | . . . . . 2 5 . 6 5 5 10 10 10 10 6 1 5 Protection 6 | . . . . . 3 14 13 10 5 9 5 2 5 5 3 4 5 Energy Gun 9 | . 14 14 13 14 14 12 13 13 11 11 10 10 9 10 3 4 7 Energy Cannon 3 | . . . . . . 6 6 6 5 3 4 5 5 4 . . 5 Naked Turns . | . . . . . . . . . . . . . . . . . . Heaviest Build 151 | 13 14 14 48 48 62 98 94 99 112 121 111 109 109 108 128 131 151 Greatest Support 215 | 20 20 20 20 16 56 56 28 56 56 140 140 140 140 140 145 175 215 Greatest Overweight (x) 12 | . . . 2 2 1 3 3 3 1 4 . . . . . . 12 Average Overweight (x) . | . . . . 2 . 1 3 1 1 . . . . . . . . Largest Inventory Capacity 20 | . 8 8 20 20 20 20 20 20 20 20 20 20 20 20 20 20 20 Average Capacity 19 | . 8 8 14 20 20 20 20 20 20 20 20 20 20 20 20 20 18 Most Carried 20 | . 8 8 9 9 20 20 20 20 19 20 20 20 20 20 20 20 19 Average Carried 16 | . 7 7 8 9 14 18 20 19 18 18 19 19 19 19 15 17 11 Final Capacity 20 | 8 8 8 20 20 20 20 20 20 20 20 20 20 20 20 20 20 5 Final Carried 20 | 6 8 8 9 9 20 20 20 19 19 20 20 20 20 17 17 19 3 Class Distribution -------------------- 52% | Scavenger-Gunner 21% | Tank 9% | Mutant 6% | Scavenger-Tank 4% | Gunner 4% | Skirmisher Dominant Class ---------------- Mutant | -10/Materials Mutant | -10/Mines Mutant | -10/Exiles Mutant | -9/Mines Mutant | -8/Materials Tank | -7/Factory Tank | -6/Factory Gunner | -6/DSF Gunner | -5/Factory Scavenger-Gunner | -4/Factory Scavenger-Gunner | -4/Upper Caves Scavenger-Gunner | -4/Upper Caves Scavenger-Gunner | -4/Warlord Scavenger-Gunner | -3/Proximity Caves Scavenger-Gunner | -3/Research Tank | -2/Research Scavenger-Tank | -1/Access Resources | -11 -10 -10 -10 -9 -8 -7 -6 -6 -5 -4 -4 -4 -4 -3 -3 -2 -1 ----------- Run | Yrd Mat Min Exi Min Mat Fac Fac DSF Fac Fac Upp Upp War Pro Res Res Acc Matter Collected 2194 | 171 75 19 . . 245 485 . 79 . 180 99 18 . 110 148 155 410 Remotely . | . . . . . . . . . . . . . . . . . . Salvage Created 11308 | . 364 53 . . 28 1129 . 557 . 1238 646 956 . 300 1645 1280 3112 Parts 490 | . 16 5 . . 4 73 . 34 . 74 25 23 . 24 47 37 128 Haulers Intercepted 1 | . 1 . . . . . . . . . . . . . . . . Recyclers Shooed 3 | . 1 . . . . . . . . 1 . . . . . . 1 Parts Field Recycled . | . . . . . . . . . . . . . . . . . . Retrieved Matter . | . . . . . . . . . . . . . . . . . . Parts Self-Destructed 78 | . . . . . . . . . . . 32 22 . 24 . . . Prevented 6 | . . . . . . . . . . . 6 . . . . . . Kills | -11 -10 -10 -10 -9 -8 -7 -6 -6 -5 -4 -4 -4 -4 -3 -3 -2 -1 ------- Run | Yrd Mat Min Exi Min Mat Fac Fac DSF Fac Fac Upp Upp War Pro Res Res Acc Combat Hostiles Destroyed 156 | . 5 3 . . . 21 . 6 . 14 8 12 . 5 22 18 42 Guns 64 | . 5 3 . . . 11 . 5 . 10 2 6 . 5 1 . 16 Cannons 35 | . . . . . . 7 . 1 . 3 6 5 . . . . 13 AOE 39 | . . . . . . . . . . . . . . . 18 16 5 Classes Destroyed 21 | . 4 1 . . . 8 . . . 1 2 . . 2 1 2 . Worker 10 | . . . . . . . . . . . . . . . 1 . 9 Builder 6 | . . . . . . 1 . . . 1 . . . . 2 . 2 Tunneler 1 | . . . . . . . . . . 1 . . . . . . . Hauler 1 | . 1 . . . . . . . . . . . . . . . . Recycler 4 | . 1 . . . . . . . . 1 . . . . 1 . 1 Mechanic 2 | . . . . . . 1 . . . . . 1 . . . . . Operator 2 | . . . . . . 1 . . . 1 . . . . . . . Drone 2 | . . . . . . . . . . . . . . 2 . . . Watcher 6 | . 1 . . . 1 2 . . . 1 . . . . . . 1 Swarmer 28 | . . 3 . . . 3 . . . 1 . 3 . . 4 4 10 Grunt 39 | . 5 . . . . 8 . 3 . 2 3 5 . . . 7 6 Brawler 3 | . . . . . . . . . . . 1 2 . . . . . Duelist 4 | . . . . . . . . . . . 3 . . . . . 1 Sentry 9 | . . . . . . 1 . . . . 1 2 . . 4 . 1 Demolisher 1 | . . . . . . . . . . . . . . . . 1 . Specialist 8 | . . . . . . 4 . 2 . . . . . . 2 . . Hunter 21 | . . . . . . 2 . . . 4 . . . . 6 2 7 Programmer 33 | . . . . . . 2 . . . 6 . . . 2 5 2 16 Heavy 5 | . . . . . . 1 . 1 . 1 . . . . 1 . 1 Behemoth 2 | . . . . . . . . . . . . . . 1 . 1 . Striker 1 | . . . . . . . . . . . . . . . . 1 . Best Kill Streak 12 | . 3 3 . . 1 5 . 5 . 8 6 12 . 2 9 6 8 Combat Bots Only 11 | . 2 3 . . . 5 . 5 . 6 6 11 . 2 7 6 4 Max Kills in Single Turn 4 | . 1 1 . . 1 1 . 1 . 2 1 1 . 1 4 3 2 Gunslinging . | . . . . . . . . . . . . . . . . . . Exploded 4 | . . . . . . . . . . . . . . . 4 3 1 Melee . | . . . . . . . . . . . . . . . . . . Uniques/NPCs Destroyed . | . . . . . . . . . . . . . . . . . . Combat | -11 -10 -10 -10 -9 -8 -7 -6 -6 -5 -4 -4 -4 -4 -3 -3 -2 -1 -------- Run | Yrd Mat Min Exi Min Mat Fac Fac DSF Fac Fac Upp Upp War Pro Res Res Acc Hostile Shots Fired 1217 | . 24 19 . . . 222 . 39 . 101 13 47 1 31 130 62 528 Missed 402 | . 9 3 . . . 61 . 13 . 33 2 14 1 3 47 20 196 Damage Taken 17125 | . 216 125 . . 39 2295 . 465 . 1328 251 671 . 747 1814 1345 7829 Core 2111 | . 36 21 . . . 164 . . . 42 22 25 . . 54 128 1619 Absorbed by Shields . | . . . . . . . . . . . . . . . . . . Reduced by Siege Mode 114 | . . . . . . . . . . 22 11 . . 81 . . . Ignored by Resistances 394 | . . . . . . . . . . . . 81 . 56 30 147 80 Regen/Repaired (Parts) 112 | . . . . . . . . . . . . . 112 . . . . Core Remaining (%) 92 | 100 . . . 77 100 76 . 100 100 . . . . 92 95 91 . Volleys Fired 437 | . 26 12 . . 10 80 . 16 . 51 19 31 . 24 27 22 119 Largest 4 | . 2 2 . . 2 3 . 3 . 3 3 3 . 3 1 1 4 Hottest 518 | . 60 60 . . 119 200 . 200 . 240 200 200 . 273 300 300 518 Shots Fired 1079 | . 52 23 . . 20 188 . 42 . 145 54 93 . 60 28 22 352 Gun 734 | . 52 23 . . 20 89 . 32 . 123 35 62 . 48 28 22 200 Cannon 329 | . . . . . . 96 . 10 . 20 19 31 . 12 . . 141 Launcher 11 | . . . . . . . . . . . . . . . . . 11 Special 5 | . . . . . . 3 . . . 2 . . . . . . . Kinetic 81 | . 26 12 . . 5 38 . . . . . . . . . . . Thermal 909 | . . 8 . . 10 118 . 42 . 143 54 93 . 60 28 22 331 Explosive . | . . . . . . . . . . . . . . . . . . Electromagnetic 84 | . 26 3 . . 5 29 . . . . . . . . . . 21 Robot Hit Streak 17 | . 10 2 . . 5 16 . 7 . 10 14 14 . 15 17 10 17 Robot Miss Streak 10 | . 3 4 . . 3 4 . 3 . 3 3 3 . 10 6 5 3 Penetration Max . | . . . . . . . . . . . . . . . . . . Secondary Targets 5 | . . . . . . 1 . . . 4 . . . . . . . Max Gunslinging Chain 1 | . . . . . . 1 . . . 1 . . . . . . . Capacitor 48 | . . . . . . . . . . . . . . . 28 19 1 Shots Hit Robots 699 | . 36 8 . . 13 122 . 24 . 89 39 67 . 29 23 18 231 Core Hits 390 | . 18 4 . . 3 40 . 12 . 31 14 26 . 10 83 53 96 Critical Kills 26 | . . . . . . 4 . 2 . 7 2 4 . 2 . . 5 Critical Parts Destroyed 20 | . . . . . . 1 . 2 . 8 2 2 . 3 . . 2 Critical Strikes 61 | . 1 . . . . 7 . 5 . 15 4 8 . 8 . . 13 Burn 8 | . . . . . . 1 . . . . . . . 1 . . 6 Meltdown 5 | . . . . . . 2 . . . . . . . . . . 3 Destroy 46 | . . . . . . 3 . 5 . 15 4 8 . 7 . . 4 Blast 1 | . . . . . . 1 . . . . . . . . . . . Corrupt 1 | . 1 . . . . . . . . . . . . . . . . Melee Attacks . | . . . . . . . . . . . . . . . . . . Impact . | . . . . . . . . . . . . . . . . . . Slashing . | . . . . . . . . . . . . . . . . . . Piercing . | . . . . . . . . . . . . . . . . . . Sneak Attacks . | . . . . . . . . . . . . . . . . . . Combat Hostiles . | . . . . . . . . . . . . . . . . . . Follow-up Attacks . | . . . . . . . . . . . . . . . . . . Damage Inflicted 28370 | . 531 81 . . 256 3060 . 894 . 2385 1127 1894 . 879 4962 3113 9188 Guns 11937 | . 395 81 . . 236 1317 . 680 . 2001 621 1208 . 572 224 89 4513 Cannons 7954 | . . . . . . 1720 . 214 . 384 506 686 . 307 . . 4137 Explosions 8397 | . 136 . . . 20 . . . . . . . . . 4735 2980 526 Melee . | . . . . . . . . . . . . . . . . . . Ramming 82 | . . . . . . 23 . . . . . . . . 3 44 12 Kinetic 786 | . 152 49 . . 33 552 . . . . . . . . . . . Thermal 26316 | . 136 21 . . 97 2061 . 894 . 2385 1127 1894 . 879 4959 3069 8794 Explosive . | . . . . . . . . . . . . . . . . . . Electromagnetic 1186 | . 243 11 . . 126 424 . . . . . . . . . . 382 Impact . | . . . . . . . . . . . . . . . . . . Slashing . | . . . . . . . . . . . . . . . . . . Piercing . | . . . . . . . . . . . . . . . . . . Highest Corruption 18 | . . . . . . 3 . 2 . 2 2 3 3 . 6 1 18 Average Corruption 4 | . . . . . . 2 . 1 . 1 2 2 3 . 5 1 8 Corruption Purged . | . . . . . . . . . . . . . . . . . . Corruption Blocked . | . . . . . . . . . . . . . . . . . . Effects 132 | . . . . . . 21 . . . 7 17 10 1 . 19 . 57 Message Errors 46 | . . . . . . 7 . . . 2 6 3 . . 10 . 18 Matter Fused 21 | . . . . . . 1 . . . 1 4 2 1 . 4 . 8 Heat Flow Errors 16 | . . . . . . 2 . . . . 3 3 . . 2 . 6 Energy Discharges 11 | . . . . . . 4 . . . . 1 1 . . 1 . 4 Parts Rejected 1 | . . . . . . . . . . . . . . . . . 1 Parts Fused 2 | . . . . . . . . . . . . . . . 1 . 1 Data Loss (minor) 13 | . . . . . . 5 . . . . 1 1 . . . . 6 Data Loss (major) 5 | . . . . . . 2 . . . . 1 . . . . . 2 Misfires 5 | . . . . . . . . . . 2 1 . . . 1 . 1 Alerts 2 | . . . . . . . . . . . . . . . . . 2 Misdirections 3 | . . . . . . . . . . . . . . . . . 3 Weapon Failures 7 | . . . . . . . . . . 2 . . . . . . 5 Overload Shots 5 | . . . . . . . . . . . . . . . . . 5 Overflow Damage 310 | . 7 . . . . 8 . . . 46 2 18 . . 30 101 98 Projectiles 136 | . . . . . . 8 . . . 46 2 18 . . . . 62 Explosions 174 | . 7 . . . . . . . . . . . . . 30 101 36 Melee . | . . . . . . . . . . . . . . . . . . Knockbacks 10 | . . . . . . 9 . . . . . . . . . . 1 Impact 2 | . . . . . . 1 . . . . . . . . . . 1 Kinetic 8 | . . . . . . 8 . . . . . . . . . . . Secondary . | . . . . . . . . . . . . . . . . . . Self-Inflicted Damage 414 | . 25 . . . 17 11 . . . . . . . . 321 40 . Shots 19 | . 1 . . . 1 . . . . . . . . . 15 2 . Rammed 6 | . . . . . . 2 . . . . . . . . 1 1 2 Targets Rammed 6 | . . . . . . 2 . . . . . . . . 1 1 2 Kicked . | . . . . . . . . . . . . . . . . . . Crushed . | . . . . . . . . . . . . . . . . . . Highest Temperature 471 | . 147 . . . 3 460 . 104 . 210 184 96 . 80 437 277 471 Average Temperature 104 | . 57 . . . 3 128 . 45 . 59 72 21 . 21 167 92 122 Received Heat Transfer 1543 | . 129 . . . 9 288 . 117 . 18 42 210 . 54 54 433 189 Effects 15 | . . . . . . 12 . . . . . . . . 2 . 1 Shutdowns 2 | . . . . . . 1 . . . . . . . . 1 . . Energy Bleed 1 | . . . . . . . . . . . . . . . 1 . . Interference 8 | . . . . . . 7 . . . . . . . . . . 1 Matter Decay 2 | . . . . . . 2 . . . . . . . . . . . Short Circuit 2 | . . . . . . 2 . . . . . . . . . . . Siege Activations 6 | . . . . . . . . . . 2 1 . . 2 1 . . Total Turns 82 | . . . . . . . . . . 20 26 . . 24 12 . . Longest Duration 26 | . . . . . . . . . . 15 26 . . 16 12 . . Robots Corrupted . | . . . . . . . . . . . . . . . . . . Combat Hostiles . | . . . . . . . . . . . . . . . . . . Parts Fried 5 | . 1 . . . . 1 . . . . . . . . . . 3 Impact Corruptions . | . . . . . . . . . . . . . . . . . . Robots Melted 18 | . . . . . . 3 . . . 1 . 1 . . 3 2 8 Combat Hostiles 18 | . . . . . . 3 . . . 1 . 1 . . 3 2 8 Parts Melted 164 | . . . . . . 8 . . . 22 10 15 . 5 39 18 47 Heat Transferred 34232 | . 200 50 . . 211 2942 . 1073 . 3293 1480 2553 . 1184 7021 3989 10236 Parts Sabotaged . | . . . . . . . . . . . . . . . . . . Parts Stolen . | . . . . . . . . . . . . . . . . . . Parts Stripped . | . . . . . . . . . . . . . . . . . . Power Chain Reactions 4 | . 3 . . . 1 . . . . . . . . . . . . Alert | -11 -10 -10 -10 -9 -8 -7 -6 -6 -5 -4 -4 -4 -4 -3 -3 -2 -1 ------- Run | Yrd Mat Min Exi Min Mat Fac Fac DSF Fac Fac Upp Upp War Pro Res Res Acc Peak Influence 997 | . 220 145 . . 77 358 175 255 133 396 . . . . 997 414 734 Initial 903 | . . 85 . . . 35 175 122 133 65 . . . . 903 364 205 Average 295 | . 111 126 . . 55 124 175 185 133 156 . . . . 737 275 389 Maximum Alert Level 3 | . 1 . . . . 1 . 1 . 1 . . . . 3 2 3 Low Security (%) 41 | . 79 100 . 100 100 74 100 57 100 75 . . . . . 10 3 Level 1 35 | . 20 . . . . 25 . 42 . 24 . . . . . 89 52 Level 2 14 | . . . . . . . . . . . . . . . 42 . 41 Level 3 8 | . . . . . . . . . . . . . . . 57 . 2 Level 4 . | . . . . . . . . . . . . . . . . . . Level 5 . | . . . . . . . . . . . . . . . . . . High Security . | . . . . . . . . . . . . . . . . . . Max Security . | . . . . . . . . . . . . . . . . . . Squads Dispatched 36 | . 1 . . . 1 7 . 2 1 6 . 1 . . 5 2 10 Investigation 3 | . . . . . 1 1 . . . 1 . . . . . . . Extermination 14 | . . . . . . 2 . . 1 3 . . . . 3 . 5 Reinforcement 17 | . 1 . . . . 4 . 2 . 2 . . . . 2 2 4 Assault 2 | . . . . . . . . . . . . 1 . . . . 1 Garrison . | . . . . . . . . . . . . . . . . . . Intercept . | . . . . . . . . . . . . . . . . . . Searches Triggered 3 | . . . . . . . . . . . . . . . 3 . . Construction Impeded . | . . . . . . . . . . . . . . . . . . Haulers Reinforced 2 | . . . . . . . . . . . . . . . . 1 1 Active Scanning Responses . | . . . . . . . . . . . . . . . . . . Cargo Convoy Interrupts 1 | . . . . . . 1 . . . . . . . . . . . Stealth | -11 -10 -10 -10 -9 -8 -7 -6 -6 -5 -4 -4 -4 -4 -3 -3 -2 -1 --------- Run | Yrd Mat Min Exi Min Mat Fac Fac DSF Fac Fac Upp Upp War Pro Res Res Acc Distress Signals 20 | . . . . . 1 . . . . 3 . . 1 . 1 8 6 Communications Jammed . | . . . . . . . . . . . . . . . . . . Distress Signals . | . . . . . . . . . . . . . . . . . . Times Spotted 247 | . 8 3 . . 7 45 . 6 . 28 11 15 1 9 24 22 68 Peak Tracking Total 12 | . 2 3 . . 4 8 . 3 1 7 6 8 1 3 5 4 12 Tactical Retreats 13 | . 1 . . . . 4 . . . . . . . . . . 8 Traps | -11 -10 -10 -10 -9 -8 -7 -6 -6 -5 -4 -4 -4 -4 -3 -3 -2 -1 ------- Run | Yrd Mat Min Exi Min Mat Fac Fac DSF Fac Fac Upp Upp War Pro Res Res Acc Traps Triggered 6 | . . . . . . 1 . 2 . . . . . . 2 . 1 Indirectly . | . . . . . . . . . . . . . . . . . . Trap Hack Attempts . | . . . . . . . . . . . . . . . . . . Triggered . | . . . . . . . . . . . . . . . . . . Disarmed . | . . . . . . . . . . . . . . . . . . Reprogrammed . | . . . . . . . . . . . . . . . . . . Reused . | . . . . . . . . . . . . . . . . . . Traps Extracted . | . . . . . . . . . . . . . . . . . . Installed . | . . . . . . . . . . . . . . . . . . Triggered 19 | . . . . . 1 1 . . . . 2 . 15 . . . . Machines | -11 -10 -10 -10 -9 -8 -7 -6 -6 -5 -4 -4 -4 -4 -3 -3 -2 -1 ---------- Run | Yrd Mat Min Exi Min Mat Fac Fac DSF Fac Fac Upp Upp War Pro Res Res Acc Machines Disabled 7 | . . . . . . 1 . . . 2 . . . . 1 1 2 Max in Single Turn 1 | . . . . . . 1 . . . . . . . . 1 1 1 Garrison Access 1 | . . . . . . . . . . . . . . . . 1 . Machines Repaired . | . . . . . . . . . . . . . . . . . . Machines Dismantled . | . . . . . . . . . . . . . . . . . . Machines Sabotaged . | . . . . . . . . . . . . . . . . . . Overloaded Fab Kills . | . . . . . . . . . . . . . . . . . . Hacking | -11 -10 -10 -10 -9 -8 -7 -6 -6 -5 -4 -4 -4 -4 -3 -3 -2 -1 --------- Run | Yrd Mat Min Exi Min Mat Fac Fac DSF Fac Fac Upp Upp War Pro Res Res Acc Machines Accessed 34 | . 3 . . . 3 7 1 . 2 1 . 3 3 . 4 2 5 Terminals 23 | . 3 . . . 3 4 1 . 2 1 . . . . 4 1 4 Fabricators 3 | . . . . . . 2 . . . . . . . . . 1 . Repair Stations . | . . . . . . . . . . . . . . . . . . Recycling Units . | . . . . . . . . . . . . . . . . . . Scanalyzers 1 | . . . . . . 1 . . . . . . . . . . . Garrison Access 1 | . . . . . . . . . . . . . . . . . 1 Total Hacks 62 | . 8 . . . 8 13 2 . 4 3 . 5 4 . 5 3 7 Successful 25 | . 3 . . . 3 6 1 . . . . 5 4 . 1 . 2 Failed 37 | . 5 . . . 5 7 1 . 4 3 . . . . 4 3 5 Catastrophic 13 | . . . . . 2 1 . . 1 2 . . . . 3 2 2 Database Lockouts . | . . . . . . . . . . . . . . . . . . Manual 20 | . 5 . 1 . 8 3 . . 2 . . . . . 1 . . Terminals 48 | . 8 . . . 8 10 2 . 4 3 . . . . 5 2 6 Fabricators 3 | . . . . . . 2 . . . . . . . . . 1 . Repair Stations . | . . . . . . . . . . . . . . . . . . Recycling Units . | . . . . . . . . . . . . . . . . . . Scanalyzers 1 | . . . . . . 1 . . . . . . . . . . . Garrison Access 1 | . . . . . . . . . . . . . . . . . 1 Terminal Hacks 17 | . 1 . . . . 3 1 . . . . 5 4 . 1 . 2 Record 5 | . . . . . . . . . . . . 3 2 . . . . Open Door 5 | . . . . . . . . . . . . 2 2 . . . 1 Open DSF 2 | . . . . . . 1 1 . . . . . . . . . . Branch Access Points 3 | . . . . . . 1 . . . . . . . . 1 . 1 Zone Layout 2 | . 1 . . . . 1 . . . . . . . . . . . Fabricator Hacks 1 | . . . . . . 1 . . . . . . . . . . . Build 1 | . . . . . . 1 . . . . . . . . . . . Repair Station Hacks . | . . . . . . . . . . . . . . . . . . Recycling Unit Hacks . | . . . . . . . . . . . . . . . . . . Scanalyzer 1 | . . . . . . 1 . . . . . . . . . . . Insert Component 1 | . . . . . . 1 . . . . . . . . . . . Garrison Access Hacks . | . . . . . . . . . . . . . . . . . . Unauthorized Hacks 6 | . 2 . . . 3 1 . . . . . . . . . . . Terminals 6 | . 2 . . . 3 1 . . . . . . . . . . . Track 1 | . . . . . 1 . . . . . . . . . . . . Botnet 5 | . 2 . . . 2 1 . . . . . . . . . . . Fabricators . | . . . . . . . . . . . . . . . . . . Repair Stations . | . . . . . . . . . . . . . . . . . . Recycling Units . | . . . . . . . . . . . . . . . . . . Scanalyzers . | . . . . . . . . . . . . . . . . . . Garrison Access . | . . . . . . . . . . . . . . . . . . Data Cores Recovered 2 | . . . . . . 1 . . . 1 . . . . . . . Used . | . . . . . . . . . . . . . . . . . . Hacking Detections 25 | . 3 . . . 3 5 1 . 2 1 . . . . 4 2 4 Full Trace Events 1 | . . . . . . . . . . 1 . . . . . . . Feedback Events . | . . . . . . . . . . . . . . . . . . Feedback Blocked . | . . . . . . . . . . . . . . . . . . Robot Schematics Acquired . | . . . . . . . . . . . . . . . . . . Robots Built . | . . . . . . . . . . . . . . . . . . Authchips . | . . . . . . . . . . . . . . . . . . Time . | . . . . . . . . . . . . . . . . . . Total Robot Build Rating . | . . . . . . . . . . . . . . . . . . Part Schematics Acquired . | . . . . . . . . . . . . . . . . . . Parts Built 2 | . . . . . . 2 . . . . . . . . . . . Authchips . | . . . . . . . . . . . . . . . . . . Time 95 | . . . . . . 95 . . . . . . . . . . . Total Part Build Rating 10 | . . . . . . 10 . . . . . . . . . . . Parts Repaired . | . . . . . . . . . . . . . . . . . . Time . | . . . . . . . . . . . . . . . . . . Parts Recycled . | . . . . . . . . . . . . . . . . . . Recycled Matter . | . . . . . . . . . . . . . . . . . . Retrieved Matter . | . . . . . . . . . . . . . . . . . . Retrieved Components . | . . . . . . . . . . . . . . . . . . Parts Scanalyzed . | . . . . . . . . . . . . . . . . . . Part Schematics Acquired . | . . . . . . . . . . . . . . . . . . Parts Damaged . | . . . . . . . . . . . . . . . . . . Bothacking | -11 -10 -10 -10 -9 -8 -7 -6 -6 -5 -4 -4 -4 -4 -3 -3 -2 -1 ------------ Run | Yrd Mat Min Exi Min Mat Fac Fac DSF Fac Fac Upp Upp War Pro Res Res Acc Used RIF Installer . | . . . . . . . . . . . . . . . . . . Robots Hacked . | . . . . . . . . . . . . . . . . . . Non-combat . | . . . . . . . . . . . . . . . . . . Combat . | . . . . . . . . . . . . . . . . . . Robot Hacks Applied . | . . . . . . . . . . . . . . . . . . Relay Couplers Released . | . . . . . . . . . . . . . . . . . . Fabnet Peak Effective % . | . . . . . . . . . . . . . . . . . . Robots Rewired 4 | . . . . . . . . . . . 2 2 . . . . . Allies Hacked . | . . . . . . . . . . . . . . . . . . Hacks Repelled . | . . . . . . . . . . . . . . . . . . Allies | -11 -10 -10 -10 -9 -8 -7 -6 -6 -5 -4 -4 -4 -4 -3 -3 -2 -1 -------- Run | Yrd Mat Min Exi Min Mat Fac Fac DSF Fac Fac Upp Upp War Pro Res Res Acc Total Allies 10 | . . 1 . . . 3 . . . 2 2 2 . . . . . Largest Group 2 | . . 1 1 1 1 2 1 1 . 1 2 2 2 . . . . Highest-Rated Group 116 | . . 31 31 31 31 90 90 90 . 116 116 60 60 . . . . Highest-Rated Ally 116 | . . 31 31 31 31 90 90 90 . 116 116 30 30 . . . . Total Orders 1 | . . . . . . . . . . . 1 . . . . . . STAY 1 | . . . . . . . . . . . 1 . . . . . . Ally Attacks 70 | . . . . . 11 18 . 5 . 20 15 . 1 . . . . Total Damage 2395 | . . . . . 150 364 . 54 . 1169 609 . 49 . . . . Kills 19 | . . . . . 3 2 . . . 9 5 . . . . . . Allies Corrupted 1 | . . . . . . . . . . 1 . . . . . . . Allies Melted 2 | . . . . . . . . . . . . . 2 . . . . Field Lobotomies 5 | . . . . . . 3 . . . 2 . . . . . . . Intel | -11 -10 -10 -10 -9 -8 -7 -6 -6 -5 -4 -4 -4 -4 -3 -3 -2 -1 ------- Run | Yrd Mat Min Exi Min Mat Fac Fac DSF Fac Fac Upp Upp War Pro Res Res Acc Robot Analysis Total . | . . . . . . . . . . . . . . . . . . Derelict Logs Recovered 3 | . . . . . . . . . . . 1 2 . . . . . Drone Launches . | . . . . . . . . . . . . . . . . . . Drone Recoveries . | . . . . . . . . . . . . . . . . . . Exploration | -11 -10 -10 -10 -9 -8 -7 -6 -6 -5 -4 -4 -4 -4 -3 -3 -2 -1 ------------- Run | Yrd Mat Min Exi Min Mat Fac Fac DSF Fac Fac Upp Upp War Pro Res Res Acc Turns Passed 12618 | . 306 128 316 20 341 1701 19 170 282 1363 1019 915 1027 500 1300 1444 1767 Spaces Moved 7220 | 1 158 71 235 12 241 983 14 74 242 759 556 508 629 269 722 831 915 Core 219 | . . . . . . . . . . . . . . . . . 219 Treads 4681 | . . . . . . . . . . 560 556 508 629 269 722 831 606 Legs 364 | 1 158 71 127 . . . . . . . . . . . . . 7 Wheels 1956 | . . . 108 12 241 983 14 74 242 199 . . . . . . 83 Hover . | . . . . . . . . . . . . . . . . . . Flight . | . . . . . . . . . . . . . . . . . . Fastest Speed 50 | 120 120 120 120 130 100 115 145 115 115 130 160 160 160 160 160 161 50 Average Speed 145 | 120 120 120 124 130 106 121 145 117 115 152 160 160 160 160 162 161 142 Slowest Speed 260 | 120 120 120 130 130 115 145 145 145 115 240 160 160 160 160 170 161 260 Overloaded Moves . | . . . . . . . . . . . . . . . . . . Propulsion Burnouts . | . . . . . . . . . . . . . . . . . . Robots Hopped . | . . . . . . . . . . . . . . . . . . Cave-ins Triggered . | . . . . . . . . . . . . . . . . . . Exploration Rate (%) 36 | 1 40 15 60 11 28 21 . 86 8 18 72 65 82 50 24 20 25 Regions Visited 17 Branch Regions 7 Pre-discovered Areas 2 | . . . . . . . . . . . . 2 . . . . . Known Exits Taken 1 | . . . . . . . 1 . . . . . . . . . . Unknown Exits Taken 15 | 1 1 1 1 1 1 1 . . 1 1 1 1 1 1 1 1 . Scrap Searched 3 | . . 1 . . . . . . . . . 1 . 1 . . . Spaces Dug 9 | . . . . . . 3 . . . 1 2 . . . . . 3 Terrain Destroyed 128 | . 16 . . . 5 17 . 4 . 10 5 13 . 4 . 13 41 Melee . | . . . . . . . . . . . . . . . . . . Projectile 73 | . . . . . . 17 . 4 . 10 5 13 . 4 . . 20 AOE 55 | . 16 . . . 5 . . . . . . . . . . 13 21 Terrain Rammed . | . . . . . . . . . . . . . . . . . . Walls Destroyed . | . . . . . . . . . . . . . . . . . . Machines Disabled . | . . . . . . . . . . . . . . . . . . Actions | -11 -10 -10 -10 -9 -8 -7 -6 -6 -5 -4 -4 -4 -4 -3 -3 -2 -1 --------- Run | Yrd Mat Min Exi Min Mat Fac Fac DSF Fac Fac Upp Upp War Pro Res Res Acc Total 8680 | . 227 93 256 16 311 1332 13 135 245 905 662 570 653 310 839 920 1193 Wait 603 | . 38 7 . 5 12 203 . 15 . 53 55 6 6 15 61 38 89 Move 7204 | . 157 70 234 11 240 982 13 73 241 758 555 507 628 268 721 831 915 Hop . | . . . . . . . . . . . . . . . . . . Pick Up 92 | . 3 2 2 . 17 24 . 4 2 11 1 2 4 . 8 5 7 Fast Attach 56 | . 1 . 4 . 8 4 . 2 . 7 1 1 3 . 2 8 15 Attach 79 | . . 1 1 . 2 9 . 5 2 7 1 3 1 3 10 4 30 Detach 34 | . . . 2 . 5 1 . 4 . 3 . 1 . . 7 3 8 Swap 40 | . 1 . 8 . 1 14 . . . 3 1 1 1 . . 4 6 Drop 76 | . 1 1 5 . 16 13 . 8 . 12 1 . 10 . 2 5 2 Fire 437 | . 26 12 . . 10 80 . 16 . 51 19 31 . 24 27 22 119 Melee . | . . . . . . . . . . . . . . . . . . Ram 2 | . . . . . . 2 . . . . . . . . . . . Kick . | . . . . . . . . . . . . . . . . . . Crush 3 | . . . . . . . . . . . . . . . 1 . 2 Escape Stasis 8 | . . . . . . . . 8 . . . . . . . . . Rewire 46 | . . . . . . . . . . . 28 18 . . . . . Trap . | . . . . . . . . . . . . . . . . . . Miscellaneous . | . . . . . . . . . . . . . . . . . . Route ------- -11/Scrapyard -10/Materials (discovered 2 exits: [*Mat] / [*Min]) -10/Mines (discovered 2 exits: [*Mat] / *Exi) -10/Exiles -9/Mines -8/Materials -7/Factory (discovered 3 exits: *Fac / *Low x2) -6/Factory (discovered 3 exits: *Fac x2 / DSF) -6/DSF -5/Factory -4/Factory -4/Upper Caves -4/Upper Caves -4/Warlord -3/Proximity Caves -3/Research (discovered 3 exits: *Res / *Tes x2) -2/Research -1/Access (discovered 1 exit: *Com) History --------- Turn | Location | Event 1 | -11/Scrapyard | Discovered new exit (range 0) 1 | -11/Scrapyard | Entered Materials 182 | -10/Materials | Discovered new exit (range 16) 299 | -10/Materials | Discovered new exit (range 8) 304 | -10/Materials | Build established: Mutant 307 | -10/Materials | Entered Mines 307 | -10/Mines | Discovered new exit (range 5) 416 | -10/Mines | Received a Mining Laser from a helpful Derelict 429 | -10/Mines | Deemed a non-threat by the Exiles lab entrance 429 | -10/Mines | Discovered new exit (range 5) 435 | -10/Mines | Entered Exiles 435 | -10/Exiles | Accompanied by 1 ally 467 | -10/Exiles | Met 8R-AWN 486 | -10/Exiles | Met EX-HEX 534 | -10/Exiles | Met EX-BIN 551 | -10/Exiles | Aligned with FarCom system 552 | -10/Exiles | Given EX-Vault access code 579 | -10/Exiles | Opened EX-Vault 604 | -10/Exiles | Found Prototype Slashing Weapon 604 | -10/Exiles | Identified Longsword +1 610 | -10/Exiles | Found Prototype Special Weapon 610 | -10/Exiles | Identified Field Lobotomy Kit 614 | -10/Exiles | Found Prototype Energy Cannon 614 | -10/Exiles | Identified Gui. Plasma Cannon 654 | -10/Exiles | Warned to stay clear of 0b10 Research branches 656 | -10/Exiles | Exiles lab attacked by MAIN.C 736 | -10/Exiles | Discovered new exit (range 14) 751 | -10/Exiles | Left Exiles lab with Field Lobotomy Kit 751 | -10/Exiles | Entered Mines 751 | -9/Mines | Accompanied by 1 ally 758 | -9/Mines | Discovered new exit (range 7) 760 | -9/Mines | Met a Derelict bent on vengeance 771 | -9/Mines | Entered Materials 771 | -8/Materials | Accompanied by 1 ally 771 | -8/Materials | Evolved 4 slots: Propulsion x2, Utility x2 972 | -8/Materials | Met 7R-MNS 1084 | -8/Materials | Discovered new exit (range 7) 1093 | -8/Materials | Found Prototype Device 1112 | -8/Materials | Entered Factory 1112 | -7/Factory | Accompanied by 1 ally 1112 | -7/Factory | Evolved 2 slots: Utility x1, Weapon x1 1113 | -7/Factory | Caught up to 7R-MNS 1208 | -7/Factory | Discovered new exit (range 20) 1480 | -7/Factory | Identified exit to Lower Caves 1515 | -7/Factory | Build established: Tank 1714 | -7/Factory | Fabricated Imp. Particle Charger (x2) 1788 | -7/Factory | Identified Active Sensor Suite 2116 | -7/Factory | Discovered new exit (range 15) 2215 | -7/Factory | Cargo convoy interrupted 2274 | -7/Factory | Assimilated X-62 Marksman with FLK Orb 2277 | -7/Factory | Assimilated H-55 Commando with FLK Orb 2304 | -7/Factory | Lost 6 parts (2p1n1u2w) 2423 | -7/Factory | Found Prototype Processor 2453 | -7/Factory | Identified Exp. Melee Analysis Suite 2804 | -7/Factory | Assimilated H-61 Shepherd with FLK Orb 2813 | -7/Factory | Entered another Factory area 2813 | -6/Factory | Accompanied by 1 ally 2813 | -6/Factory | Evolved 2 slots: Utility x2 2814 | -6/Factory | Caught up to 7R-MNS 2827 | -6/Factory | Discovered new exit (range 12) 2827 | -6/Factory | Discovered new exit (range 5) 2831 | -6/Factory | Identified exit to DSF 2832 | -6/Factory | Entered DSF 2832 | -6/DSF | Accompanied by 1 ally 2875 | -6/DSF | Additional patrols routed to DSF 2984 | -6/DSF | Discovered new exit (range 15) 3002 | -6/DSF | Entered Factory 3002 | -5/Factory | Evolved 2 slots: Power x1, Utility x1 3138 | -5/Factory | Build established: Gunner 3257 | -5/Factory | Discovered new exit (range 16) 3284 | -5/Factory | Entered another Factory area 3284 | -4/Factory | Evolved 2 slots: Utility x2 3332 | -4/Factory | Found Prototype Processor 3332 | -4/Factory | Identified Exp. Signal Interpreter 3558 | -4/Factory | Spotted B-86 Titan 3561 | -4/Factory | Assimilated B-86 Titan with FLK Orb 3604 | -4/Factory | Build established: Scavenger-Gunner 4553 | -4/Factory | Spotted B-86 Titan 4554 | -4/Factory | Assimilated B-86 Titan with FLK Orb 4566 | -4/Factory | Found Quantum Capacitor 4622 | -4/Factory | Discovered new exit (range 16) 4647 | -4/Factory | Entered Upper Caves 4647 | -4/Upper Caves | Accompanied by 1 ally 4667 | -4/Upper Caves | Learned Research emergency access door positions 4809 | -4/Upper Caves | Attracted the attention of an 0b10 checkpoint 5305 | -4/Upper Caves | Found Hvy. Reflective Plating 5520 | -4/Upper Caves | Spotted B-86 Titan 5645 | -4/Upper Caves | Discovered new exit (range 13) 5666 | -4/Upper Caves | Entered another Upper Caves area 5826 | -4/Upper Caves | Attracted the attention of an 0b10 outpost 5826 | -4/Upper Caves | Learned Research security intel 5922 | -4/Upper Caves | Destroyed 11 combat bots 6191 | -4/Upper Caves | Attracted the attention of an 0b10 checkpoint 6395 | -4/Upper Caves | Learned location of Armory (-4) 6395 | -4/Upper Caves | Learned 8 Factory zone layouts 6395 | -4/Upper Caves | Learned Extension terminal intel 6558 | -4/Upper Caves | Discovered new exit (range 13) 6581 | -4/Upper Caves | Entered Warlord 6581 | -4/Warlord | Accompanied by 2 allies 6634 | -4/Warlord | System corruption cleaned by Quarantine Array 6978 | -4/Warlord | Found Prototype Energy Gun 7095 | -4/Warlord | Visited the Vortex Lab 7106 | -4/Warlord | Warlord's base attacked by MAIN.C 7107 | -4/Warlord | Found Prototype Energy Gun 7107 | -4/Warlord | Identified Vortex Rail 7395 | -4/Warlord | Met Warlord 7456 | -4/Warlord | Warlord forces counterattacked 7561 | -4/Warlord | Lost 3 allies 7563 | -4/Warlord | Opened side exit 7595 | -4/Warlord | Discovered new exit (range 9) 7608 | -4/Warlord | Entered Proximity Caves 7610 | -3/Proximity Caves | Spotter reported a threat 7666 | -3/Proximity Caves | Spotter reported a threat 7719 | -3/Proximity Caves | Spotter reported a threat 7772 | -3/Proximity Caves | Spotter reported a threat 7942 | -3/Proximity Caves | Spotted B-86 Titan 7952 | -3/Proximity Caves | Spotter reported a threat 7964 | -3/Proximity Caves | Destroyed B-86 Titan 8023 | -3/Proximity Caves | Spotter reported a threat 8093 | -3/Proximity Caves | Discovered new exit (range 10) 8108 | -3/Proximity Caves | Entered Research 8108 | -3/Research | Evolved 2 slots: Weapon x2 8110 | -3/Research | Identified Plasma Storm 8254 | -3/Research | Identified exit to Testing 8358 | -3/Research | Search patrols dispatched 8578 | -3/Research | Lost 3 parts (1p1n1u) 8633 | -3/Research | Search patrols dispatched 8779 | -3/Research | Found Hvy. Insulated Plating 8894 | -3/Research | Search patrols dispatched 8960 | -3/Research | Destroyed 7 combat bots 9393 | -3/Research | Discovered new exit (range 9) 9408 | -3/Research | Entered another Research area 9408 | -2/Research | Warlord forces began assault on 0b10 9408 | -2/Research | Evolved 2 slots: Propulsion x1, Utility x1 9451 | -2/Research | Met up with Warlord 9518 | -2/Research | Research machine network offline 9717 | -2/Research | Borebot progress halted 9822 | -2/Research | Build established: Tank 9893 | -2/Research | Spotted B-90 Cyclops 9918 | -2/Research | Destroyed B-90 Cyclops 9931 | -2/Research | Spotted Striker 9935 | -2/Research | Spotted Executioner 9939 | -2/Research | Destroyed Striker 9998 | -2/Research | Found Prototype Device 9998 | -2/Research | Identified Adv. Kinecellerator 10028 | -2/Research | Spotted Executioner 10106 | -2/Research | Spotted Striker 10251 | -2/Research | Borebot progress halted 10447 | -2/Research | Build established: Skirmisher 10449 | -2/Research | Lost 5 allies 10532 | -2/Research | Borebot progress halted 10827 | -2/Research | Build established: Tank 10839 | -2/Research | Discovered new exit (range 8) 10852 | -2/Research | Entered Access 10852 | -1/Access | Evolved 2 slots: Propulsion x1, Utility x1 11422 | -1/Access | Build established: Scavenger-Tank 11878 | -1/Access | Discovered new exit (range 9) 11958 | -1/Access | Lost 3 parts (1p1n1u) 12035 | -1/Access | System corruption reached 10% 12243 | -1/Access | Lost 3 parts (1u2w) 12252 | -1/Access | Build established: Scavenger-Gunner 12354 | -1/Access | Lost 5 parts (1p2n1u1w) 12393 | -1/Access | First assault squad dispatched 12479 | -1/Access | Identified exit to Command 12516 | -1/Access | Spotted B-99 Colossus 12523 | -1/Access | Core integrity fell below 50% 12539 | -1/Access | Lost 26 parts (5p6n9u6w) 12563 | -1/Access | Core integrity fell below 20% 12619 | -1/Access | Destroyed by S-43 Plague with Heavy Machine Gun Last Messages --------------- 12565_ C-30 ARC bursts open, deploying its payload. 12565_ G-73 Enforcer unfolds itself. 12565_ L-61 Swordsman unfolds itself. 12565_ M-36 Artificer unfolds itself. 12569_ Slug penetrates Repair Station. 12570_ M-36 Artificer repairs Adv. Phase Shifter. 12570_ Slug penetrates Wall. 12573_ System corrupted: Centrium Leg fused. 12587_ S-43 Plague destroyed. 12588_ MT,CJF%ESQZ2CSA,OQ3VA/ 12595_ S-43 Plague destroyed. 12597_ Slug penetrates Wall. 12602_ ALERT: Rogue bot located, Programmers report to Access Zone 6F. 12603_ System corrupted: Component data lost. 12617_ Penetrated by Slug. 12619_ 1UGBQ#=#T355%8ARXR8TDVD